Cogmind - Beta 16 @@@ ROGUE MODE // 2026.01.10 @ 13:34:51 Player: PE-P51 Result: Destroyed by as-88515 with Assembled Rifle Performance ------------- Evolutions (0) 0 Regions Visited (4) 800 Robots Destroyed (41) 205 Value Destroyed (819) 819 Prototype IDs (24) 480 Alien Tech Used (0) 0 Bonus (300) 300 TOTAL SCORE: 2604 Bonus ------- Aligned with FarCom 300 Cogmind --------- Core Integrity 0/250 Matter 2/300 Energy 265/265 System Corruption 0% Temperature Cool (0) Movement Treading (320) Ox2 Location -9/Mines Parts ------- > --- POWER (1) -------- Improved Ion Engine > --- PROPULSION (2) --- Light Treads Light Treads > --- UTILITY (2) ------ Huge Storage Unit > --- WEAPON (2) ------- Heavy Assault Rifle Light Cannon > --- INVENTORY (25) --- Ion Engine Ion Engine Light Treads Wheel Wheel Compact Wheel Flight Unit Flight Unit Flight Unit Flight Unit Heat Sink High-capacity Matter Pod (200) Structural Scanner Experimental Sensor Array Signal Interpreter Improved Terrain Scanner Hacking Suite Medium Laser Beam Rifle Particle Gun Guided Plasma Cannon Datajack Mining Claw Peak State ------------ > --- POWER ------------ Improved Ion Engine > --- PROPULSION ------- Light Treads Light Treads > --- UTILITY ---------- Huge Storage Unit Experimental Sensor Array > --- WEAPON ----------- Beam Rifle Particle Gun > --- INVENTORY -------- Ion Engine Ion Engine Light Treads Wheel Wheel Compact Wheel Flight Unit Flight Unit Flight Unit Heat Sink High-capacity Matter Pod Structural Scanner Signal Interpreter Improved Terrain Scanner Light Armor Plating Hacking Suite Medium Laser Guided Plasma Cannon Heavy Assault Rifle Light Cannon Grenade Launcher Datajack Mining Claw [Rating: 21] Favorites ----------- Power Ion Engine Engine Ion Engine Power Core Light Nuclear Core Propulsion Light Treads Treads Light Treads Leg Aluminum Leg Wheel Compact Wheel Utility Huge Storage Unit Device Sensor Array Storage Huge Storage Unit Protection Light Armor Plating Weapon Assault Rifle Energy Gun Particle Gun Ballistic Gun Assault Rifle Ballistic Cannon Light Cannon Launcher Grenade Launcher Special Weapon Mining Laser Build | -11 -10 -10 -10 -9 ------- Run | Yrd Mat Min Exi Min Slots Evolved . | . . . . . Power . | . . . . . Propulsion . | . . . . . Utility . | . . . . . Weapon . | . . . . . Parts Attached 36 | . 24 7 . 5 Power 5 | . 2 3 . . Engine 4 | . 2 2 . . Core 1 | . . 1 . . Reactor . | . . . . . Propulsion 12 | . 10 . . 2 Treads 4 | . 3 . . 1 Leg 1 | . 1 . . . Wheel 7 | . 6 . . 1 Hover . | . . . . . Flight . | . . . . . Utility 7 | . 4 1 . 2 Device 3 | . 1 1 . 1 Storage 2 | . 2 . . . Processor . | . . . . . Hackware . | . . . . . Protection 2 | . 1 . . 1 Artifact . | . . . . . Weapon 12 | . 8 3 . 1 Energy Gun 3 | . . 3 . . Energy Cannon . | . . . . . Ballistic Gun 5 | . 4 . . 1 Ballistic Cannon 2 | . 2 . . . Launcher 1 | . 1 . . . Special Weapon 1 | . 1 . . . Impact Weapon . | . . . . . Slashing Weapon . | . . . . . Piercing Weapon . | . . . . . Special Melee Weapon . | . . . . . Unidentified Prototypes 1 | . . . . 1 Parts Lost 5 | . 2 1 . 2 Power . | . . . . . Propulsion 1 | . 1 . . . Utility 2 | . 1 . . 1 Weapon 2 | . . 1 . 1 Highest Loss Streak 1 | . 1 1 . 1 To Critical Strikes . | . . . . . Average Backups 22 | . 19 24 24 23 Power 2 | . 2 2 2 2 Propulsion 7 | . 7 8 8 7 Utility 5 | . 3 6 8 7 Weapon 6 | . 5 6 5 5 Tool/Special . | . . . . . Unused Backups 30 | . 10 5 1 14 Power 4 | . 1 2 . 1 Propulsion 7 | . 3 . . 4 Utility 9 | . 1 2 1 5 Weapon 9 | . 5 1 . 3 Tool/Special 1 | . . . . 1 Average Slot Usage (%) 99 | . 99 100 100 97 Engine 12 | . 14 9 14 14 Core 1 | . . 4 . . Treads 12 | . 17 7 . 8 Leg 1 | . 3 . . . Wheel 13 | . 7 20 28 18 Device 8 | . 6 14 14 3 Storage 14 | . 14 14 14 14 Protection 4 | . 7 . . 9 Energy Gun 10 | . . 21 28 20 Ballistic Gun 14 | . 26 . . 2 Ballistic Cannon 2 | . 1 5 . 2 Peak Build Rating 21 | . 9 14 14 21 Average Rating 10 | . 8 12 13 13 On Entrance 9 | 6 6 9 14 12 Avg Prop Armor Cover (%) 9 | . 9 . . . Naked Turns . | . . . . . Heaviest Build 96 | 13 92 94 94 96 Greatest Support 40 | 20 40 40 32 40 Greatest Overweight (x) 5 | . 5 2 4 3 Average Overweight (x) 1 | . 1 2 2 2 Largest Inventory Capacity 25 | . 25 25 25 25 Average Capacity 23 | . 21 25 25 25 Most Carried 25 | . 25 25 25 25 Average Carried 22 | . 19 24 24 23 Final Capacity 25 | 8 25 25 25 25 Final Carried 25 | 6 25 25 25 23 Class Distribution -------------------- 91% | Mutant 8% | Scavenger-Mutant Dominant Class ---------------- Mutant | -10/Materials Mutant | -10/Mines Mutant | -10/Exiles Scavenger-Mutant | -9/Mines Resources | -11 -10 -10 -10 -9 ----------- Run | Yrd Mat Min Exi Min Matter Collected 1533 | 171 955 366 . 41 Remotely . | . . . . . Salvage Created 1381 | . 1006 257 . 118 Parts 73 | . 52 13 . 8 Haulers Intercepted 2 | . 2 . . . Recyclers Shooed 6 | . 4 1 . 1 Parts Field Recycled . | . . . . . Retrieved Matter . | . . . . . Parts Self-Destructed . | . . . . . Prevented . | . . . . . Parts Restored . | . . . . . Kills | -11 -10 -10 -10 -9 ------- Run | Yrd Mat Min Exi Min Combat Hostiles Destroyed 32 | . 16 6 . 10 Guns 19 | . 15 2 . 2 Cannons 5 | . 1 4 . . AOE 8 | . . . . 8 Classes Destroyed 9 | . 7 1 . 1 Worker 3 | . . 1 . 2 Builder 3 | . 3 . . . Tunneler 2 | . 1 1 . . Hauler 2 | . 2 . . . Recycler 4 | . 3 . . 1 Operator 1 | . 1 . . . Swarmer 9 | . 5 . . 4 Grunt 17 | . 11 6 . . Assembled 6 | . . . . 6 Best Kill Streak 9 | . 3 3 . 9 Combat Bots Only 4 | . 3 2 . 4 Max Kills in Single Turn 3 | . 1 1 . 3 Gunslinging . | . . . . . Exploded 2 | . . . . 2 Melee . | . . . . . Uniques/NPCs Destroyed . | . . . . . Combat | -11 -10 -10 -10 -9 -------- Run | Yrd Mat Min Exi Min Hostile Shots Fired 170 | . 95 30 . 45 Missed 61 | . 33 12 . 16 Hits 109 | . 62 18 . 29 Melee 2 | . . . . 2 Projectile 107 | . 62 18 . 27 Critical Strikes 2 | . . 1 . 1 Damage Taken 1453 | . 710 229 . 514 Core 255 | . 80 37 . 138 Absorbed by Shields . | . . . . . Core Remaining (%) 100 | 100 . . . . Volleys Fired 120 | . 86 20 . 14 Largest 2 | . 2 2 . 2 Hottest 130 | . 100 130 . 121 Shots Fired 231 | . 171 38 . 22 Gun 198 | . 168 21 . 9 Cannon 26 | . 2 17 . 7 Launcher 6 | . . . . 6 Special 1 | . 1 . . . Kinetic 202 | . 170 18 . 14 Thermal 23 | . 1 20 . 2 Explosive 6 | . . . . 6 Electromagnetic . | . . . . . Robot Hit Streak 15 | . 15 9 . 10 Robot Miss Streak 3 | . 3 2 . 2 Penetration Max . | . . . . . Secondary Targets 4 | . 4 . . . Max Gunslinging Chain 1 | . 1 . . . Shots Hit Robots 148 | . 110 28 . 10 Core Hits 76 | . 45 11 . 20 Critical Kills 1 | . 1 . . . Critical Parts Destroyed . | . . . . . Critical Strikes 3 | . 1 2 . . Burn 2 | . . 2 . . Destroy 1 | . 1 . . . Melee Attacks . | . . . . . Impact . | . . . . . Slashing . | . . . . . Piercing . | . . . . . Sneak Attacks . | . . . . . Combat Hostiles . | . . . . . Follow-up Attacks . | . . . . . Damage Inflicted 2594 | . 1346 483 . 765 Guns 1639 | . 1307 256 . 76 Cannons 284 | . 18 214 . 52 Explosions 637 | . . . . 637 Melee . | . . . . . Ramming 34 | . 21 13 . . Kinetic 1652 | . 1325 214 . 113 Thermal 271 | . . 256 . 15 Explosive 637 | . . . . 637 Electromagnetic . | . . . . . Impact . | . . . . . Slashing . | . . . . . Piercing . | . . . . . Highest Corruption . | . . . . . Average Corruption . | . . . . . Corruption Purged . | . . . . . Corruption Blocked . | . . . . . Overload Shots . | . . . . . Overflow Damage 21 | . . . . 21 Projectiles . | . . . . . Explosions 21 | . . . . 21 Melee . | . . . . . Knockbacks 7 | . 1 6 . . Impact 2 | . 1 1 . . Kinetic 5 | . . 5 . . Secondary . | . . . . . Self-Inflicted Damage 139 | . 7 . . 132 Shots 6 | . . . . 6 Rammed 5 | . 3 2 . . Targets Rammed 5 | . 3 2 . . Kicked . | . . . . . Crushed . | . . . . . Highest Temperature 189 | . 32 189 . 69 Average Temperature 31 | . 7 61 . 16 Received Heat Transfer 369 | . 231 138 . . Siege Activations . | . . . . . Martial Activations . | . . . . . Shielding Activations . | . . . . . Robots Disrupted . | . . . . . Combat Hostiles . | . . . . . Robots Corrupted . | . . . . . Combat Hostiles . | . . . . . Parts Fried . | . . . . . Impact Corruptions . | . . . . . Robots Melted . | . . . . . Combat Hostiles . | . . . . . Parts Melted 2 | . . 2 . . Heat Transferred 777 | . . 740 . 37 Parts Sabotaged . | . . . . . Parts Stolen . | . . . . . Parts Stripped . | . . . . . Power Chain Reactions . | . . . . . Alert | -11 -10 -10 -10 -9 ------- Run | Yrd Mat Min Exi Min Maximum Alert Level . | . . . . . Low Security (%) 100 | . 100 100 . 100 Level 1 . | . . . . . Level 2 . | . . . . . Level 3 . | . . . . . Level 4 . | . . . . . Level 5 . | . . . . . High Security . | . . . . . Max Security . | . . . . . Peak Influence 168 | . 168 47 . 101 Initial 5 | . . 5 . . Average 47 | . 68 5 . 45 Influence Increases 861 | . 574 160 . 127 Destroy 0b10 Robot/C 520 | . 320 120 . 80 Destroy 0b10 Robot/NC 75 | . 50 10 . 15 Destroy Leader 114 | . 74 30 . 10 Successful Hack 9 | . 9 . . . Select Force Hacks 30 | . 30 . . . Disable Machine 15 | . 15 . . . Destroy Structure 23 | . 1 . . 22 Lose Combat Pursuer 75 | . 75 . . . Influence Decreases 861 | . 560 174 . 127 Entered New Map 9 | . . 9 . . Time Decay 822 | . 550 155 . 117 Lost Part 30 | . 10 10 . 10 Squads Dispatched 3 | . 3 . . . Investigation 2 | . 2 . . . Extermination . | . . . . . Reinforcement 1 | . 1 . . . Assault . | . . . . . Garrison . | . . . . . Intercept . | . . . . . Searches Triggered . | . . . . . Construction Impeded . | . . . . . Haulers Reinforced . | . . . . . Active Scanning Responses . | . . . . . Cargo Convoy Interrupts . | . . . . . Stealth | -11 -10 -10 -10 -9 --------- Run | Yrd Mat Min Exi Min Distress Signals 2 | . 2 . . . Communications Jammed . | . . . . . Distress Signals . | . . . . . Times Spotted 51 | . 35 6 . 10 Peak Tracking Total 5 | . 5 2 . 5 Tactical Retreats 5 | . 4 . . 1 Traps | -11 -10 -10 -10 -9 ------- Run | Yrd Mat Min Exi Min Traps Triggered 2 | . 2 . . . Indirectly . | . . . . . Trap Hack Attempts . | . . . . . Triggered . | . . . . . Disarmed . | . . . . . Reprogrammed . | . . . . . Reused . | . . . . . Traps Extracted . | . . . . . Installed . | . . . . . Triggered . | . . . . . Machines | -11 -10 -10 -10 -9 ---------- Run | Yrd Mat Min Exi Min Machines Disabled 3 | . 3 . . . Max in Single Turn 1 | . 1 . . . Machines Repaired . | . . . . . Machines Dismantled . | . . . . . Machines Sabotaged . | . . . . . Overloaded Fab Kills . | . . . . . Hacking | -11 -10 -10 -10 -9 --------- Run | Yrd Mat Min Exi Min Machines Accessed 7 | . 6 . 1 . Terminals 4 | . 4 . . . Fabricators . | . . . . . Repair Stations . | . . . . . Recycling Units 2 | . 2 . . . Scanalyzers . | . . . . . Garrison Access . | . . . . . Total Hacks 16 | . 15 . 1 . Successful 7 | . 6 . 1 . Failed 9 | . 9 . . . Catastrophic . | . . . . . Database Lockouts . | . . . . . Manual 12 | . 11 . 1 . Terminals 10 | . 10 . . . Fabricators . | . . . . . Repair Stations . | . . . . . Recycling Units 5 | . 5 . . . Scanalyzers . | . . . . . Garrison Access . | . . . . . Terminal Hacks 2 | . 1 . 1 . Hauler Manifests 1 | . 1 . . . Proto ID Catalog 1 | . . . 1 . Fabricator Hacks . | . . . . . Repair Station Hacks . | . . . . . Recycling Unit Hacks 2 | . 2 . . . Retrieve Components 2 | . 2 . . . Scanalyzer . | . . . . . Garrison Access Hacks . | . . . . . Unauthorized Hacks 3 | . 3 . . . Terminals 2 | . 2 . . . Botnet 2 | . 2 . . . Fabricators . | . . . . . Repair Stations . | . . . . . Recycling Units 1 | . 1 . . . Tunnel 1 | . 1 . . . Scanalyzers . | . . . . . Garrison Access . | . . . . . Data Cores Recovered . | . . . . . Used . | . . . . . Hacking Detections 5 | . 5 . . . Full Trace Events 2 | . 2 . . . Feedback Events . | . . . . . Feedback Blocked . | . . . . . Robot Schematics Acquired . | . . . . . Robots Built . | . . . . . Authchips . | . . . . . Time . | . . . . . Total Robot Build Rating . | . . . . . Part Schematics Acquired . | . . . . . Parts Built . | . . . . . Authchips . | . . . . . Time . | . . . . . Total Part Build Rating . | . . . . . Part Studies Acquired . | . . . . . Parts Repaired . | . . . . . Time . | . . . . . Parts Recycled . | . . . . . Recycled Matter . | . . . . . Retrieved Matter . | . . . . . Retrieved Components 19 | . 19 . . . Parts Scanalyzed . | . . . . . Part Schematics Acquired . | . . . . . Parts Damaged . | . . . . . Bothacking | -11 -10 -10 -10 -9 ------------ Run | Yrd Mat Min Exi Min Used RIF Installer . | . . . . . Robots Hacked . | . . . . . Non-combat . | . . . . . Combat . | . . . . . Robot Hacks Applied . | . . . . . Relay Couplers Released . | . . . . . Fabnet Peak Effective % . | . . . . . Robots Rewired . | . . . . . Allies Hacked . | . . . . . Hacks Repelled . | . . . . . Allies | -11 -10 -10 -10 -9 -------- Run | Yrd Mat Min Exi Min Total Allies . | . . . . . Largest Group . | . . . . . Highest-Rated Group . | . . . . . Highest-Rated Ally . | . . . . . Total Orders . | . . . . . Ally Attacks . | . . . . . Total Damage . | . . . . . Kills . | . . . . . Allies Corrupted . | . . . . . Allies Melted . | . . . . . Intel | -11 -10 -10 -10 -9 ------- Run | Yrd Mat Min Exi Min Active Infowar (turns) 2258 | . 962 912 349 35 Sensors 2258 | . 962 912 349 35 Robot Analysis Total . | . . . . . Derelict Logs Recovered 3 | . . 2 . 1 Drone Launches . | . . . . . Drone Recoveries . | . . . . . Exploration | -11 -10 -10 -10 -9 ------------- Run | Yrd Mat Min Exi Min Turns Passed 3926 | . 2181 1136 349 260 Spaces Moved 1938 | 1 922 623 265 127 Core . | . . . . . Treads 440 | . 373 57 1 9 Legs 126 | 1 125 . . . Wheels 1372 | . 424 566 264 118 Hover . | . . . . . Flight . | . . . . . Fastest Speed 105 | 120 105 130 130 135 Average Speed 166 | 120 192 147 131 148 Slowest Speed 480 | 120 320 320 480 320 Overloaded Moves . | . . . . . Propulsion Burnouts . | . . . . . Robots Hopped . | . . . . . Potential Cave-ins . | . . . . . Cave-ins Triggered . | . . . . . Exploration Rate (%) 56 | 1 84 98 62 36 Regions Visited 4 Branch Regions 3 Pre-discovered Areas 3 | . 1 1 . 1 Known Exits Taken . | . . . . . Unknown Exits Taken 4 | 1 1 1 1 . Scrap Searched 2 | . . 1 . 1 Spaces Dug 12 | . . . . 12 Terrain Destroyed 35 | . . . . 35 Melee . | . . . . . Projectile . | . . . . . AOE 35 | . . . . 35 Terrain Rammed . | . . . . . Walls Destroyed . | . . . . . Machines Disabled . | . . . . . Actions | -11 -10 -10 -10 -9 --------- Run | Yrd Mat Min Exi Min Total 2388 | . 1147 798 271 172 Wait 155 | . 41 110 . 4 Move 1934 | . 921 622 264 127 Hop . | . . . . . Pick Up 42 | . 30 9 2 1 Fast Attach 6 | . 4 . . 2 Attach 7 | . 2 1 . 4 Detach 5 | . 3 . . 2 Swap 81 | . 40 23 2 16 Drop 33 | . 17 11 3 2 Fire 120 | . 86 20 . 14 Melee . | . . . . . Ram 1 | . 1 . . . Kick . | . . . . . Crush 4 | . 2 2 . . Escape Stasis . | . . . . . Rewire . | . . . . . Trap . | . . . . . Miscellaneous . | . . . . . Route ------- -11/Scrapyard -10/Materials (discovered 5 exits: [*Mat x3] / [*Min x2]) -10/Mines (discovered 4 exits: [*Mat x2] / *Exi / [*Sub]) -10/Exiles (discovered 2 exits: [*Min x2]) -9/Mines (discovered 1 exit: [*Mat]) History --------- Turn | Location | Event 1 | -11/Scrapyard | Discovered new exit (range 0) 1 | -11/Scrapyard | Entered Materials 1 | -10/Materials | Discovered new exit (range 15) 308 | -10/Materials | Build established: Mutant 326 | -10/Materials | Discovered new exit (range 10) 594 | -10/Materials | Discovered new exit (range 15) 919 | -10/Materials | Discovered new exit (range 15) 1383 | -10/Materials | Discovered new exit (range 8) 2182 | -10/Materials | Entered Mines 2342 | -10/Mines | Learned Materials security intel 2478 | -10/Mines | Found a damaged Exp. Sensor Array with a note attached 2481 | -10/Mines | Found Prototype Device 2483 | -10/Mines | Discovered new exit (range 7) 2569 | -10/Mines | Learned location of Storage (-8) 2793 | -10/Mines | Discovered new exit (range 7) 2952 | -10/Mines | Discovered new exit (range 9) 3100 | -10/Mines | Joined a pair of Derelicts in attacking an 0b10 outpost 3232 | -10/Mines | Deemed a non-threat by the Exiles lab entrance 3232 | -10/Mines | Discovered new exit (range 5) 3318 | -10/Mines | Entered Exiles 3335 | -10/Exiles | Discovered new exit (range 15) 3351 | -10/Exiles | Met 8R-AWN 3369 | -10/Exiles | Met EX-HEX 3409 | -10/Exiles | Met EX-BIN 3425 | -10/Exiles | Aligned with FarCom system 3426 | -10/Exiles | Given EX-Vault access code 3456 | -10/Exiles | Opened EX-Vault 3465 | -10/Exiles | Found Gui. Plasma Cannon 3493 | -10/Exiles | Warned to stay clear of 0b10 Research branches 3529 | -10/Exiles | Met EX-DEC 3645 | -10/Exiles | Discovered new exit (range 14) 3667 | -10/Exiles | Left Exiles lab with Gui. Plasma Cannon 3667 | -10/Exiles | Entered Mines 3668 | -9/Mines | Core integrity fell below 50% 3698 | -9/Mines | Identified Exp. Sensor Array 3788 | -9/Mines | Learned location of Zion (-6) 3789 | -9/Mines | Assembled infested the area 3819 | -9/Mines | Discovered new exit (range 5) 3882 | -9/Mines | Core integrity fell below 20% 3903 | -9/Mines | A weapon hastily lodged in a ceiling crevice suddenly fell to the ground 3927 | -9/Mines | Destroyed by as-88515 with Assembled Rifle Last Messages --------------- note attached: "To battle!" 03903_ U-05 Engineer lays Concrete. 03904_ U-05 Engineer builds a Wall. 03904_ U-05 Engineer lays Concrete. 03905_ K-01 Serf collects debris. 03906_ U-05 Engineer lays Concrete. 03908_ U-05 Engineer builds a Wall. 03910_ K-01 Serf collects debris. 03912_ U-05 Engineer lays Concrete. 03913_ Lgt. Armor Plating destroyed. 03914_ U-05 Engineer lays Concrete. 03914_ K-01 Serf collects debris. 03915_ U-05 Engineer lays Concrete. 03916_ U-05 Engineer builds a Wall. 03920_ K-01 Serf collects debris. 03920_ U-05 Engineer builds a Wall. 03921_ U-05 Engineer lays Concrete. 03924_ K-01 Serf collects debris. 03925_ U-05 Engineer lays Concrete. 03927_ K-01 Serf collects debris. Map ----- +----------------------------------------------------+ | ?????????????????????????????????????????????????? | | ?????????????????????????????????????????????????? | | ?????????????????????????????????????????????????? | | ?????????????????????????????????????????????????? | | ?????????????????????????????????????????????????? | | ?????????????????????????????????????????????????? | | ?????????????????????????????????????????????????? | | ????????????????????????? ??????????????????????? | | ????????????????????????? ????????????????????? | | ?????????????????????? ?? ??????????????????? | | ?????????????????????? ?? a ???????????????????? | | ?????????????????????? ?? ! ???###?????????????? | | ?????????????????????? ## %% ##?## ##???????????? | | ?????????????????????? =% ?## #####????#### | | ??????????????????????# #?# *! #???## | | ??????????????????????# ## !%! #?### | | ??????????????????????# ## = #### ### # | | ????????????######????# % # |= #???# ## | | ???????????## #???# %*%= #????#### ## | | ???????????# #### = ! #????????# ### | | ????????????? ########### ### | | ?????????????????# ## ## ## | | ??????????????????# u #?# | | ??????????????????# %r ###?# #### | | ??????????????????# k !u# #?# ##?# ## | | ?????????????????## ] @%# #### ### ### | | ????????????? # ##=## ### #?? | | ???????????????## %= < ### #? | | ???????????????# ### #? | | ???????????????# ### #?## #? | | ???????????????## ## # ##??# ##? | | ????????????????## ### ##???# #?? | | ?????????????????## ??# ##????## ##?? | | ??????????????????### #??###########??????####??? | | ????????????????????###??????????????????????????? | | ?????????????????????????????????????????????????? | | ?????????????????????????????????????????????????? | | | | | | | | | | | | | | | | | | | | | | | | | | | +----------------------------------------------------+ Best States ------------- Heat Dissipation 35 Energy Generation 14 Energy Capacity 265 Matter Stores 300 Matter Capacity 300 Sight Range 16 Robot Scan Range 20 Terrain Scan Density 10 Armor Coverage 150 Evasion (%) 55 Recoil Reduction 2 Item Schematics ----------------- None Robot Schematics ------------------ None Fabricated ------------ Nothing Repaired ---------- Nothing Studied --------- None Alien Tech Used ----------------- None Achievements -------------- None Challenges ------------ None Game ------ Seed CorruptionRecoilRifle Manual? 0 Play Time 00:26:18 Cumulative 294.1 hours Start 2026.01.10 @ 12:59:33 End 2026.01.10 @ 13:34:51 Sessions 1 Manual Loads 0 Difficulty Rogue Special Mode None Game No. 360 Rogue 359 Adventurer 1 Explorer 0 Win Type - Total 3 Types 1/0/0/1/1/0/0/0/0/0 Lore% 76 Gallery% 68 Achievement% 58 Wizard Run 0 Options --------- Layout 0 ASCII 0 Keyboard 0 Movement Numpad Keybinds 0 Fullscreen 0 Font 20/SmallcapsGlow Map View 76x50 Zoom Use 0% Tactical HUD 1 Map Filters NONE Filters NONE Steam 1 RUN: 76d56bf0-cd87-46b9-a246-cda6e8ba24da